Cogmind - Beta 14 @@@ ROGUE MODE // 2024.08.09 @ 19:46:30 Player: Olafz Result: Destroyed by C-35 Carver with Carbide Saw Performance ------------- Evolutions (5) 2500 Regions Visited (6) 1200 Robots Destroyed (0) 0 Value Destroyed (0) 0 Prototype IDs (1) 20 Alien Tech Used (0) 0 Bonus (1987) 1987 TOTAL SCORE: 5707 Bonus ------- Pacifist 1987 Cogmind --------- Core Integrity 0/1000 Matter 299/300 Energy 100/100 System Corruption 5% Temperature Cool (0) Movement Core (50) Location -5/Factory Parts ------- > --- POWER (1) -------- (None) > --- PROPULSION (4) --- (None) > --- UTILITY (10) ----- Enhanced Optical Array Improved Melee Analysis Suite > --- WEAPON (2) ------- (None) > --- INVENTORY (5) ---- Faulty Cooled Cesium-ion Thruster Nuclear Pulse Array Great Maul Spear Peak State ------------ > --- POWER ------------ Micro Nuclear Core > --- PROPULSION ------- Nuclear Pulse Thruster Nuclear Pulse Thruster Cooled Cesium-ion Thruster Field Propulsion Drive > --- UTILITY ---------- Advanced Weight Redist. System Enhanced Optical Array Advanced Sensor Array Improved Signal Interpreter Improved Melee Analysis Suite Hacking Suite System Shield > --- WEAPON ----------- Heavy Flail > --- INVENTORY -------- Great Maul Spear [Rating: 55] Favorites ----------- Power Micro Nuclear Core Power Core Micro Nuclear Core Propulsion Nuclear Pulse Thruster Flight Unit Nuclear Pulse Thruster Utility Improved Melee Analysis Suite Device Advanced Weight Redist. System Processor Improved Melee Analysis Suite Hackware Hacking Suite Weapon Heavy Flail Impact Weapon Heavy Flail Piercing Weapon Spear Build | -11 -10 -9 -8 -7 -6 -5 ------- Run | Yrd Mat Mat Mat Fac Fac Fac Slots Evolved 10 | . . 2 2 2 2 2 Power . | . . . . . . . Propulsion 2 | . . . 1 1 . . Utility 8 | . . 2 1 1 2 2 Weapon . | . . . . . . . Parts Attached 22 | . . . 6 5 6 5 Power 1 | . . . . . 1 . Engine . | . . . . . . . Core 1 | . . . . . 1 . Reactor . | . . . . . . . Propulsion 6 | . . . 1 . 1 4 Treads . | . . . . . . . Leg . | . . . . . . . Wheel . | . . . . . . . Hover . | . . . . . . . Flight 6 | . . . 1 . 1 4 Utility 13 | . . . 5 3 4 1 Device 4 | . . . . 2 2 . Storage . | . . . . . . . Processor 7 | . . . 5 . 1 1 Hackware 2 | . . . . 1 1 . Protection . | . . . . . . . Artifact . | . . . . . . . Weapon 2 | . . . . 2 . . Energy Gun . | . . . . . . . Energy Cannon . | . . . . . . . Ballistic Gun . | . . . . . . . Ballistic Cannon . | . . . . . . . Launcher . | . . . . . . . Special Weapon . | . . . . . . . Impact Weapon 1 | . . . . 1 . . Slashing Weapon . | . . . . . . . Piercing Weapon 1 | . . . . 1 . . Special Melee Weapon . | . . . . . . . Unidentified Prototypes 1 | . . . . . . 1 Parts Lost 13 | . . . . 2 . 11 Power 1 | . . . . . . 1 Propulsion 5 | . . . . 1 . 4 Utility 6 | . . . . 1 . 5 Weapon 1 | . . . . . . 1 Highest Loss Streak 10 | . . . . 1 . 10 To Critical Strikes . | . . . . . . . Average Slot Usage (%) 43 | . . . 14 47 58 62 Core 1 | . . . . . 4 4 Flight 3 | . . . 1 . 2 10 Device 6 | . . . . 3 13 12 Processor 20 | . . . 13 32 20 17 Hackware 5 | . . . . 4 10 10 Impact Weapon 3 | . . . . 4 6 3 Peak Build Rating 55 | . . . 21 26 42 55 Average Rating 23 | . . . 5 21 32 42 On Entrance 11 | . . . . 21 20 42 Naked Turns 126 | . 33 59 34 . . . Heaviest Build 11 | . . . . 4 11 11 Greatest Support 25 | 3 3 3 5 5 15 25 Greatest Overweight (x) 1 | . . . . 1 1 . Average Overweight (x) . | . . . . . . . Largest Inventory Capacity 5 | 5 5 5 5 5 5 5 Average Capacity 5 | 5 5 5 5 5 5 5 Most Carried 5 | . . . 2 5 5 5 Average Carried 2 | . . . . 4 3 2 Final Capacity 5 | 5 5 5 5 5 5 5 Final Carried 5 | . . . 2 5 3 5 Class Distribution -------------------- 55% | Mutant 35% | Hacker-Scout 8% | Assassin Dominant Class ---------------- Mutant | -10/Materials Mutant | -9/Materials Mutant | -8/Materials Mutant | -7/Factory Hacker-Scout | -6/Factory Hacker-Scout | -5/Factory Resources | -11 -10 -9 -8 -7 -6 -5 ----------- Run | Yrd Mat Mat Mat Fac Fac Fac Matter Collected 346 | 119 . . 97 28 . 102 Remotely . | . . . . . . . Salvage Created . | . . . . . . . Parts . | . . . . . . . Haulers Intercepted . | . . . . . . . Recyclers Shooed . | . . . . . . . Parts Field Recycled . | . . . . . . . Retrieved Matter . | . . . . . . . Parts Self-Destructed . | . . . . . . . Prevented . | . . . . . . . Kills | -11 -10 -9 -8 -7 -6 -5 ------- Run | Yrd Mat Mat Mat Fac Fac Fac Combat Hostiles Destroyed . | . . . . . . . Classes Destroyed . | . . . . . . . Best Kill Streak . | . . . . . . . Combat Bots Only . | . . . . . . . Max Kills in Single Turn . | . . . . . . . Gunslinging . | . . . . . . . Exploded . | . . . . . . . Melee . | . . . . . . . Uniques/NPCs Destroyed . | . . . . . . . Combat | -11 -10 -9 -8 -7 -6 -5 -------- Run | Yrd Mat Mat Mat Fac Fac Fac Hostile Shots Fired 226 | . 4 7 43 38 24 110 Missed 102 | . 2 7 20 13 12 48 Damage Taken 2194 | . 26 . 300 303 150 1415 Core 1619 | . 26 . 282 212 89 1010 Absorbed by Shields . | . . . . . . . Core Remaining (%) 82 | 100 89 100 48 69 89 . Volleys Fired . | . . . . . . . Largest . | . . . . . . . Hottest . | . . . . . . . Shots Fired . | . . . . . . . Gun . | . . . . . . . Cannon . | . . . . . . . Launcher . | . . . . . . . Special . | . . . . . . . Kinetic . | . . . . . . . Thermal . | . . . . . . . Explosive . | . . . . . . . Electromagnetic . | . . . . . . . Robot Hit Streak . | . . . . . . . Robot Miss Streak . | . . . . . . . Penetration Max . | . . . . . . . Secondary Targets . | . . . . . . . Shots Hit Robots . | . . . . . . . Core Hits . | . . . . . . . Critical Kills . | . . . . . . . Critical Parts Destroyed . | . . . . . . . Critical Strikes . | . . . . . . . Melee Attacks 2 | . . . . 2 . . Impact 2 | . . . . 2 . . Slashing . | . . . . . . . Piercing . | . . . . . . . Sneak Attacks . | . . . . . . . Combat Hostiles . | . . . . . . . Follow-up Attacks . | . . . . . . . Damage Inflicted 12 | . . . 4 . . 8 Guns . | . . . . . . . Cannons . | . . . . . . . Explosions . | . . . . . . . Melee . | . . . . . . . Ramming 12 | . . . 4 . . 8 Kinetic . | . . . . . . . Thermal . | . . . . . . . Explosive . | . . . . . . . Electromagnetic . | . . . . . . . Impact . | . . . . . . . Slashing . | . . . . . . . Piercing . | . . . . . . . Highest Corruption 5 | . 1 . . . . 5 Average Corruption 1 | . 1 . . . . 1 Corruption Purged . | . . . . . . . Corruption Blocked . | . . . . . . . Effects 1 | . . . . . . 1 Parts Rejected 1 | . . . . . . 1 Overload Shots . | . . . . . . . Overflow Damage . | . . . . . . . Projectiles . | . . . . . . . Explosions . | . . . . . . . Melee . | . . . . . . . Knockbacks . | . . . . . . . Impact . | . . . . . . . Kinetic . | . . . . . . . Secondary . | . . . . . . . Self-Inflicted Damage 6 | . . . 2 . . 4 Shots . | . . . . . . . Rammed 3 | . . . 2 . . 1 Targets Rammed 3 | . . . 2 . . 1 Kicked . | . . . . . . . Crushed . | . . . . . . . Highest Temperature . | . . . . . . . Average Temperature . | . . . . . . . Received Heat Transfer 231 | . 15 . 99 21 24 72 Siege Activations . | . . . . . . . Robots Corrupted . | . . . . . . . Combat Hostiles . | . . . . . . . Parts Fried . | . . . . . . . Impact Corruptions . | . . . . . . . Robots Melted . | . . . . . . . Combat Hostiles . | . . . . . . . Parts Melted . | . . . . . . . Heat Transferred . | . . . . . . . Parts Sabotaged . | . . . . . . . Parts Stolen . | . . . . . . . Parts Stripped . | . . . . . . . Power Chain Reactions . | . . . . . . . Alert | -11 -10 -9 -8 -7 -6 -5 ------- Run | Yrd Mat Mat Mat Fac Fac Fac Peak Influence 383 | . 15 20 383 240 172 364 Initial 173 | . . 5 8 173 112 84 Average 157 | . 4 7 196 205 125 169 Maximum Alert Level 1 | . . . 1 1 . 1 Low Security (%) 62 | 100 100 100 45 35 100 66 Level 1 37 | . . . 54 64 . 33 Level 2 . | . . . . . . . Level 3 . | . . . . . . . Level 4 . | . . . . . . . Level 5 . | . . . . . . . High Security . | . . . . . . . Max Security . | . . . . . . . Squads Dispatched 10 | . . 1 1 1 . 7 Investigation 3 | . . . . . . 3 Extermination . | . . . . . . . Reinforcement 7 | . . 1 1 1 . 4 Assault . | . . . . . . . Garrison . | . . . . . . . Intercept . | . . . . . . . Searches Triggered . | . . . . . . . Construction Impeded . | . . . . . . . Haulers Reinforced . | . . . . . . . Active Scanning Responses . | . . . . . . . Cargo Convoy Interrupts . | . . . . . . . Stealth | -11 -10 -9 -8 -7 -6 -5 --------- Run | Yrd Mat Mat Mat Fac Fac Fac Distress Signals 4 | . . . 2 . . 2 Communications Jammed . | . . . . . . . Distress Signals . | . . . . . . . Times Spotted 76 | . 3 7 22 6 5 33 Peak Tracking Total 17 | . 3 7 14 3 5 17 Tactical Retreats 13 | . . . 5 2 1 5 Traps | -11 -10 -9 -8 -7 -6 -5 ------- Run | Yrd Mat Mat Mat Fac Fac Fac Traps Triggered 2 | . 1 . . . . 1 Indirectly . | . . . . . . . Trap Hack Attempts . | . . . . . . . Triggered . | . . . . . . . Disarmed . | . . . . . . . Reprogrammed . | . . . . . . . Reused . | . . . . . . . Traps Extracted . | . . . . . . . Installed . | . . . . . . . Triggered . | . . . . . . . Machines | -11 -10 -9 -8 -7 -6 -5 ---------- Run | Yrd Mat Mat Mat Fac Fac Fac Machines Disabled . | . . . . . . . Max in Single Turn . | . . . . . . . Machines Repaired . | . . . . . . . Machines Dismantled . | . . . . . . . Machines Sabotaged . | . . . . . . . Overloaded Fab Kills . | . . . . . . . Hacking | -11 -10 -9 -8 -7 -6 -5 --------- Run | Yrd Mat Mat Mat Fac Fac Fac Machines Accessed 4 | . . . . . . 4 Terminals 4 | . . . . . . 4 Fabricators . | . . . . . . . Repair Stations . | . . . . . . . Recycling Units . | . . . . . . . Scanalyzers . | . . . . . . . Garrison Access . | . . . . . . . Total Hacks 16 | . . . . . . 16 Successful 2 | . . . . . . 2 Failed 14 | . . . . . . 14 Catastrophic 6 | . . . . . . 6 Database Lockouts . | . . . . . . . Manual 16 | . . . . . . 16 Terminals 16 | . . . . . . 16 Fabricators . | . . . . . . . Repair Stations . | . . . . . . . Recycling Units . | . . . . . . . Scanalyzers . | . . . . . . . Garrison Access . | . . . . . . . Terminal Hacks . | . . . . . . . Fabricator Hacks . | . . . . . . . Repair Station Hacks . | . . . . . . . Recycling Unit Hacks . | . . . . . . . Scanalyzer . | . . . . . . . Garrison Access Hacks . | . . . . . . . Unauthorized Hacks 2 | . . . . . . 2 Terminals 2 | . . . . . . 2 Botnet 2 | . . . . . . 2 Fabricators . | . . . . . . . Repair Stations . | . . . . . . . Recycling Units . | . . . . . . . Scanalyzers . | . . . . . . . Garrison Access . | . . . . . . . Data Cores Recovered . | . . . . . . . Used . | . . . . . . . Hacking Detections 4 | . . . . . . 4 Full Trace Events 3 | . . . . . . 3 Feedback Events . | . . . . . . . Feedback Blocked . | . . . . . . . Robot Schematics Acquired . | . . . . . . . Robots Built . | . . . . . . . Authchips . | . . . . . . . Time . | . . . . . . . Total Robot Build Rating . | . . . . . . . Part Schematics Acquired . | . . . . . . . Parts Built . | . . . . . . . Authchips . | . . . . . . . Time . | . . . . . . . Total Part Build Rating . | . . . . . . . Parts Repaired . | . . . . . . . Time . | . . . . . . . Parts Recycled . | . . . . . . . Recycled Matter . | . . . . . . . Retrieved Matter . | . . . . . . . Retrieved Components . | . . . . . . . Parts Scanalyzed . | . . . . . . . Part Schematics Acquired . | . . . . . . . Parts Damaged . | . . . . . . . Bothacking | -11 -10 -9 -8 -7 -6 -5 ------------ Run | Yrd Mat Mat Mat Fac Fac Fac Used RIF Installer . | . . . . . . . Robots Hacked . | . . . . . . . Non-combat . | . . . . . . . Combat . | . . . . . . . Robot Hacks Applied . | . . . . . . . Relay Couplers Released . | . . . . . . . Fabnet Peak Effective % . | . . . . . . . Robots Rewired . | . . . . . . . Allies Hacked . | . . . . . . . Hacks Repelled . | . . . . . . . Allies | -11 -10 -9 -8 -7 -6 -5 -------- Run | Yrd Mat Mat Mat Fac Fac Fac Total Allies . | . . . . . . . Largest Group . | . . . . . . . Highest-Rated Group . | . . . . . . . Highest-Rated Ally . | . . . . . . . Total Orders . | . . . . . . . Ally Attacks . | . . . . . . . Total Damage . | . . . . . . . Kills . | . . . . . . . Allies Corrupted . | . . . . . . . Allies Melted . | . . . . . . . Intel | -11 -10 -9 -8 -7 -6 -5 ------- Run | Yrd Mat Mat Mat Fac Fac Fac Robot Analysis Total . | . . . . . . . Derelict Logs Recovered . | . . . . . . . Drone Launches . | . . . . . . . Drone Recoveries . | . . . . . . . Exploration | -11 -10 -9 -8 -7 -6 -5 ------------- Run | Yrd Mat Mat Mat Fac Fac Fac Turns Passed 817 | 9 33 59 113 271 129 203 Spaces Moved 1510 | 19 66 118 213 371 240 483 Core 881 | 19 66 118 170 342 83 83 Treads . | . . . . . . . Legs . | . . . . . . . Wheels . | . . . . . . . Hover . | . . . . . . . Flight 629 | . . . 43 29 157 400 Fastest Speed 32 | 50 50 50 35 35 40 32 Average Speed 50 | 50 50 50 46 68 50 39 Slowest Speed 100 | 50 50 50 50 100 100 50 Overloaded Moves . | . . . . . . . Propulsion Burnouts . | . . . . . . . Robots Hopped 15 | . . . 1 . 9 5 Cave-ins Triggered . | . . . . . . . Exploration Rate (%) 22 | 2 27 24 42 20 15 25 Regions Visited 6 Branch Regions . Pre-discovered Areas . | . . . . . . . Known Exits Taken 3 | . . . 1 1 1 . Unknown Exits Taken 3 | 1 1 1 . . . . Scrap Searched . | . . . . . . . Spaces Dug 2 | . . . . 2 . . Terrain Destroyed 2 | . . . . 2 . . Melee 2 | . . . . 2 . . Projectile . | . . . . . . . AOE . | . . . . . . . Terrain Rammed . | . . . . . . . Walls Destroyed . | . . . . . . . Machines Disabled . | . . . . . . . Actions | -11 -10 -9 -8 -7 -6 -5 --------- Run | Yrd Mat Mat Mat Fac Fac Fac Total 1526 | 18 65 117 221 382 237 486 Wait . | . . . . . . . Move 1476 | 18 65 117 210 370 221 475 Hop 13 | . . . 1 . 9 3 Pick Up 5 | . . . 2 2 . 1 Fast Attach 19 | . . . 6 5 4 4 Attach 3 | . . . . . 2 1 Detach 4 | . . . . 2 1 1 Swap . | . . . . . . . Drop 1 | . . . . 1 . . Fire . | . . . . . . . Melee 2 | . . . . 2 . . Ram 3 | . . . 2 . . 1 Kick . | . . . . . . . Crush . | . . . . . . . Escape Stasis . | . . . . . . . Rewire . | . . . . . . . Trap . | . . . . . . . Miscellaneous . | . . . . . . . Route ------- -11/Scrapyard -10/Materials -9/Materials -8/Materials -7/Factory (discovered 2 exits: *Fac / [*Low]) -6/Factory -5/Factory History --------- Turn | Location | Event 3 | -11/Scrapyard | Discovered new exit (range 16) 10 | -11/Scrapyard | Entered Materials 36 | -10/Materials | Discovered new exit (range 16) 43 | -10/Materials | Entered another Materials area 43 | -9/Materials | Evolved 2 slots: Utility x2 95 | -9/Materials | Discovered new exit (range 16) 102 | -9/Materials | Entered another Materials area 102 | -8/Materials | Evolved 2 slots: Propulsion x1, Utility x1 198 | -8/Materials | Core integrity fell below 50% 203 | -8/Materials | Discovered new exit (range 17) 215 | -8/Materials | Identified exit to Factory 215 | -8/Materials | Entered Factory 215 | -7/Factory | Evolved 2 slots: Propulsion x1, Utility x1 332 | -7/Factory | Build established: Mutant 471 | -7/Factory | Discovered new exit (range 15) 484 | -7/Factory | Discovered new exit (range 13) 485 | -7/Factory | Identified exit to Factory 486 | -7/Factory | Entered another Factory area 486 | -6/Factory | Evolved 2 slots: Utility x2 610 | -6/Factory | Discovered new exit (range 13) 615 | -6/Factory | Identified exit to Factory 615 | -6/Factory | Entered another Factory area 615 | -5/Factory | Evolved 2 slots: Utility x2 729 | -5/Factory | Spotted B-75 Beast 800 | -5/Factory | Core integrity fell below 50% 807 | -5/Factory | Core integrity fell below 20% 818 | -5/Factory | Destroyed by C-35 Carver with Carbide Saw Last Messages --------------- Knocked back. K-01 Serf collects debris. Penetrated by Slug. Knocked back. K-01 Serf collects debris. O-16 Technician: "IFF HANDSHAKE FAILED. SECURING TERMINAL." Knocked back. K-01 Serf destroyed. System corrupted: Adv. Sensor Array rejected. System Shield destroyed. System corrupted by crushing effect (+4). Knocked back. Hacking Suite destroyed. Critical hit (Blast). Knocked back. ALERT: Hostiles spotted, dispatching reinforcements to Terminal F009. Imp. Signal Interpreter severed. Penetrated by Slug. Slug penetrates C-35 Carver. Acquired Nuclear Pulse Array. Map ----- +----------------------------------------------------+ | ???????????????????????????????????????????? | | ???????????????????????????????????????????? | | ???????????????????????????????????????????? | | ???????????????????????????????????????????? | | ???????????????????????????????????????????? | | ???????????????????????????????????????????? | | ??????????# ??????????????????????????????? | | ??????????+ ??????????????????????????????? | | ??????????# ??????????????????????????????? | | ??????????# ??????????????????????????????? | | ??????????# ?????????????????????????????? | | ??????????# ?????????????????????????????? | | ??????????# ?????????????????????????????? | | ??????????# ?????????????????????????????? | | ??????????# ?????????????????????????????? | | ??????????# """??????????????????????????? | | ??????????# """??????????????????????????? | | ??????????# """??????????????????????????? | | ??????????# ??????????????????????????? | | ??????????# """??????????????????????????? | | ??????????# ""???????????????????????????? | | ??????????# ""???????????????????????????? | | ??????????# ???????????????????????????? | | ??????????# ???????????????????????????? | | ???????????# #######c#???????????????????? | | ???????????# # c@ c #???????????????????? | | ???????????+ + #???????????????????? | | ???????????# # #???????????????????? | | ???????????# # #???????????????????? | | ???????????# # #???????????????????? | | ???????????# #! #??? ???????????????? | | ???????????# # #??? #??????????????? | | ???????????+ # #??# #?????????? ???? | | ???????????# # #??# #????????? ? | | ???????????# # #### ###??????? | | ???????????# # ## #??????# | | ???????????# ########## #??????# | | ???????????# #????????# #??????# | | ??????????## ##???????# #??????# | | ?????# #### ######??# #??????# | | ?????# #??# #??????# | | ?????# #??# #??????# | | ?????# #??# #??????+ | | ?????###+## ## #??# #??????# | | ??????????######## #??# #??????# | | ?????????????????# #??# #??????# | | ?????????????????# #### #?????## | | ???????????????### # #?????# | | ???????????????# ####### | | ????????######## % | +----------------------------------------------------+ Best States ------------- Heat Dissipation 40 Energy Generation 15 Energy Capacity 150 Matter Stores 300 Matter Capacity 300 Sight Range 22 Robot Scan Range 16 Terrain Scan Density 10 Additional Mass Support 9 Evasion (%) 63 Melee Accuracy 18 Offensive Hacking 10 Defensive Hacking 10 Item Schematics ----------------- None Robot Schematics ------------------ None Fabricated ------------ Nothing Alien Tech Used ----------------- None Achievements -------------- None Challenges ------------ None Game ------ Seed MyomerCommBroadsword Manual? 0 Play Time 00:16:16 Cumulative 187.0 hours Start 2024.08.09 @ 19:31:12 End 2024.08.09 @ 19:46:30 Sessions 1 Manual Loads 0 Difficulty Rogue Special Mode None Game No. 322 Rogue 320 Adventurer 2 Explorer 0 Win Type - Total 7 Types 6/0/0/1/0/0/0/0/0 Lore% 69 Gallery% 63 Achievement% 53 Wizard Run 0 Options --------- Layout 0 ASCII 0 Keyboard 1 Movement Numpad Keybinds 1 Fullscreen 2 Font 18/SmallcapsGlow Map View 76x50 Zoom Use 0% Tactical HUD 1 Map Filters NONE Filters NONE Steam 1 RUN: 48a93ec7-c275-4104-9768-e3ba2e96b9da